{"text_format":"3","workbook":"xlsx","n_sheets":2,"sheets":["INÍCIO","FOLHA DE HORAS ANUAIS"],"not_rendered":{"defined_names":2},"read":"whole","date_system":"1900"}

{"sheet":"INÍCIO","index":0,"n_rows":8,"n_cols":2,"rows_kept":8}
[null,"ACERCA DESTE MODELO"]
[null,"Controle as suas horas diária, semanal, mensal e anualmente nesta Folha de Horários de Colaboradores."]
[null,"Preencha as informações básicas, como Nome do Colaborador, Nome do Gestor, endereço de E-mail e número de Telefone. "]
[null,"Adicione as suas horas a cada tabela de mês. Registe as horas de expediente e extraordinárias em colunas separadas para cada dia de cada semana. "]
[null,"Os Totais de Horas de Expediente e Extraordinárias são calculados automaticamente. "]
[null,"Notas:"]
[null,"Encontram-se Instruções Adicionais na coluna A na folha de cálculo FOLHA DE HORAS ANUAIS. O texto encontra-se intencionalmente oculto. Para remover o texto, selecione a coluna A e, em seguida, selecione Eliminar. Para mostrar o texto, selecione a coluna A e, em seguida, mude a cor do tipo de letra. "]
[null,"Para saber mais sobre as tabelas, prima Shift+F10 numa tabela, selecione a opção TABELA e, em seguida, selecione TEXTO ALTERNATIVO."]

{"sheet":"FOLHA DE HORAS ANUAIS","index":1,"n_rows":132,"n_cols":15,"rows_kept":132,"merged":[[0,1,0,2],[0,4,0,14],[10,6,10,7],[21,6,21,7],[32,6,32,7],[33,4,33,14],[43,6,43,7],[54,6,54,7],[65,6,65,7],[66,4,66,14],[76,6,76,7],[87,6,87,7],[98,6,98,7],[99,4,99,14],[109,6,109,7],[120,6,120,7],[131,6,131,7]]}
["Crie uma folha de horas de colaborador diária, semanal, mensal ou anual nesta folha de cálculo. \nEncontram-se instruções úteis sobre como utilizar este livro nas células desta coluna. Prima a Seta para Baixo para começar.\nO título desta folha de cálculo encontra-se na célula à direita e o cabeçalho do trimestre de janeiro, fevereiro e março encontra-se na célula E1.","FOLHA DE HORÁRIOS DE COLABORADORES",null,null,"Janeiro, fevereiro, março      Folha de Horários de Colaboradores: Diária, Semanal, Mensal, Anual"]
["Introduza o Nome do Colaborador na célula C2 e as horas normais e extraordinárias na tabela de janeiro a partir da célula E2.","Nome do Colaborador:",null,null,"Janeiro","Semana 1","Horas Extraordinárias","Semana 2","Horas Extraordinárias  ","Semana 3","Horas Extraordinárias   ","Semana 4","Horas Extraordinárias    ","Semana 5","Horas Extraordinárias     "]
["Introduza o Nome do gestor na célula C3.","Gestor:",null,null,"Segunda-feira",{"v":8,"d":"8.0"}]
["Introduza o endereço de E-mail na célula C4.","E-mail:",null,null,"Terça-feira",{"v":8,"d":"8.0"},{"v":2,"d":"2.0"}]
["Introduza o número de Telefone na célula C5. A instrução seguinte está na célula A9.","Telefone:",null,null,"Quarta-feira"]
[{"$nulls":4},"Quinta-feira"]
[{"$nulls":4},"Sexta-feira"]
[{"$nulls":4},"Sábado"]
["As horas de expediente totais anuais são calculadas automaticamente na célula C9.","Horas de expediente:",{"$f":"HrsDeExpediente","v":31},null,"Domingo"]
["As horas extraordinárias totais anuais são calculadas automaticamente na célula C10.","Horas extraordinárias:",{"$f":"Hrs_Extraordinárias","v":4},null,"Horas semanais totais",{"$f":"SUM(F3:F9)","v":{"v":16,"d":"16.0"}},{"v":2,"d":"2.0"},{"v":0,"d":"0.0"},{"v":0,"d":"0.0"},{"v":0,"d":"0.0"},{"v":0,"d":"0.0"},{"v":0,"d":"0.0"},{"v":0,"d":"0.0"},{"v":0,"d":"0.0"},{"v":0,"d":"0.0"}]
["As horas totais anuais são calculadas automaticamente na célula C11. As horas de expediente totais de janeiro na célula F11 e as horas extraordinárias totais de janeiro na célula I11 são calculadas automaticamente. A instrução seguinte está na célula A13.","Total",{"$f":"HrsDeExpediente+Hrs_Extraordinárias","v":35},null,{"$f":"TEXT(DATEVALUE(Janeiro[[#Headers],[Janeiro]]&\"  \"&YEAR(TODAY())),\"mmm.\")&\" total: horas de expediente\"","v":"jan. total: horas de expediente"},{"$f":"SUM(Janeiro[Semana 1],Janeiro[Semana 2],Janeiro[Semana 3],Janeiro[Semana 4],Janeiro[Semana 5])","v":{"v":16,"d":"16.0"}},{"$f":"TEXT(DATEVALUE(Janeiro[[#Headers],[Janeiro]]&\"  \"&YEAR(TODAY())),\"mmm.\")&\" total: horas extraordinárias\"","v":"jan. total: horas extraordinárias"},null,{"$f":"SUM(Janeiro[Horas Extraordinárias],Janeiro[[Horas Extraordinárias  ]],Janeiro[[Horas Extraordinárias   ]],Janeiro[[Horas Extraordinárias    ]],Janeiro[[Horas Extraordinárias     ]])","v":{"v":2,"d":"2.0"}}]
[]
["Introduza as horas de expediente e extraordinárias na tabela de fevereiro a partir da célula E13. A instrução seguinte está na célula A22.",{"$nulls":3},"Fevereiro","Semana 1","Horas Extraordinárias","Semana 2","Horas Extraordinárias  ","Semana 3","Horas Extraordinárias   ","Semana 4","Horas Extraordinárias    ","Semana 5","Horas Extraordinárias     "]
[{"$nulls":4},"Segunda-feira",{"v":8,"d":"8.0"}]
[{"$nulls":4},"Terça-feira",{"v":7,"d":"7.0"},{"v":2,"d":"2.0"}]
[{"$nulls":4},"Quarta-feira"]
[{"$nulls":4},"Quinta-feira"]
[{"$nulls":4},"Sexta-feira"]
[{"$nulls":4},"Sábado"]
[{"$nulls":4},"Domingo"]
[{"$nulls":4},"Horas semanais totais",{"$f":"SUM(F14:F20)","v":{"v":15,"d":"15.0"}},{"v":2,"d":"2.0"},{"v":0,"d":"0.0"},{"v":0,"d":"0.0"},{"v":0,"d":"0.0"},{"v":0,"d":"0.0"},{"v":0,"d":"0.0"},{"v":0,"d":"0.0"},{"v":0,"d":"0.0"},{"v":0,"d":"0.0"}]
["As horas de expediente totais de fevereiro na célula F22 e as horas extraordinárias totais de fevereiro na célula I22 são calculadas automaticamente. A instrução seguinte está na célula A24.",{"$nulls":3},{"$f":"TEXT(DATEVALUE(Fevereiro[[#Headers],[Fevereiro]]&\"  \"&YEAR(TODAY())),\"mmm.\")&\" total: horas de expediente\"","v":"fev. total: horas de expediente"},{"$f":"SUM(Fevereiro[Semana 1],Fevereiro[Semana 2],Fevereiro[Semana 3],Fevereiro[Semana 4],Fevereiro[Semana 5])","v":{"v":15,"d":"15.0"}},{"$f":"TEXT(DATEVALUE(Fevereiro[[#Headers],[Fevereiro]]&\" \"&YEAR(TODAY())),\"mmm.\")&\" total: horas extraordinárias\"","v":"fev. total: horas extraordinárias"},null,{"$f":"SUM(Fevereiro[Horas Extraordinárias],Fevereiro[[Horas Extraordinárias  ]],Fevereiro[[Horas Extraordinárias   ]],Fevereiro[[Horas Extraordinárias    ]],Fevereiro[[Horas Extraordinárias     ]])","v":{"v":2,"d":"2.0"}}]
[]
["Introduza as horas de expediente e extraordinárias na tabela de março a partir da célula E24. A instrução seguinte está na célula A33.",{"$nulls":3},"Março","Semana 1","Horas Extraordinárias","Semana 2","Horas Extraordinárias ","Semana 3","Horas Extraordinárias  ","Semana 4","Horas Extraordinárias    ","Semana 5","Horas Extraordinárias     "]
[{"$nulls":4},"Segunda-feira"]
[{"$nulls":4},"Terça-feira"]
[{"$nulls":4},"Quarta-feira"]
[{"$nulls":4},"Quinta-feira"]
[{"$nulls":4},"Sexta-feira"]
[{"$nulls":4},"Sábado"]
[{"$nulls":4},"Domingo"]
[{"$nulls":4},"Horas semanais totais",{"$f":"SUM(F25:F31)","v":{"v":0,"d":"0.0"}},{"v":0,"d":"0.0"},{"v":0,"d":"0.0"},{"v":0,"d":"0.0"},{"v":0,"d":"0.0"},{"v":0,"d":"0.0"},{"v":0,"d":"0.0"},{"v":0,"d":"0.0"},{"v":0,"d":"0.0"},{"v":0,"d":"0.0"}]
["As horas de expediente totais de março na célula F33 e as horas extraordinárias totais de março na célula I33 são calculadas automaticamente.",{"$nulls":3},{"$f":"TEXT(DATEVALUE(Março[[#Headers],[Março]]&\" \"&YEAR(TODAY())),\"mmm.\")&\" total: horas de expediente\"","v":"mar. total: horas de expediente"},{"$f":"SUM(Março[Semana 1],Março[Semana 2],Março[Semana 3],Março[Semana 4],Março[Semana 5])","v":{"v":0,"d":"0.0"}},{"$f":"TEXT(DATEVALUE(Março[[#Headers],[Março]]&\" \"&YEAR(TODAY())),\"mmm.\")&\" total: horas extraordinárias\"","v":"mar. total: horas extraordinárias"},null,{"$f":"SUM(Março[Horas Extraordinárias],Março[[Horas Extraordinárias ]],Março[[Horas Extraordinárias  ]],Março[[Horas Extraordinárias    ]],Março[[Horas Extraordinárias     ]])","v":{"v":0,"d":"0.0"}}]
["O cabeçalho do segundo trimestre de abril, maio e junho encontra-se na célula E34. ",{"$nulls":3},"Abril, maio, junho      Folha de Horários de Colaboradores: Diária, Semanal, Mensal, Anual"]
["Introduza as horas de expediente e extraordinárias na tabela de abril a partir da célula E35. A instrução seguinte está na célula A44.",{"$nulls":3},"Abril","Semana 1","Horas Extraordinárias","Semana 2","Horas Extraordinárias  ","Semana 3","Horas Extraordinárias   ","Semana 4","Horas Extraordinárias    ","Semana 5","Horas Extraordinárias     "]
[{"$nulls":4},"Segunda-feira"]
[{"$nulls":4},"Terça-feira"]
[{"$nulls":4},"Quarta-feira"]
[{"$nulls":4},"Quinta-feira"]
[{"$nulls":4},"Sexta-feira"]
[{"$nulls":4},"Sábado"]
[{"$nulls":4},"Domingo"]
[{"$nulls":4},"Horas semanais totais",{"$f":"SUM(F36:F42)","v":{"v":0,"d":"0.0"}},{"v":0,"d":"0.0"},{"v":0,"d":"0.0"},{"v":0,"d":"0.0"},{"v":0,"d":"0.0"},{"v":0,"d":"0.0"},{"v":0,"d":"0.0"},{"v":0,"d":"0.0"},{"v":0,"d":"0.0"},{"v":0,"d":"0.0"}]
["As horas de expediente totais de abril na célula F44 e as horas extraordinárias totais de abril na célula I44 são calculadas automaticamente. A instrução seguinte está na célula A46.",{"$nulls":3},{"$f":"TEXT(DATEVALUE(Abril[[#Headers],[Abril]]&\" \"&YEAR(TODAY())),\"mmm.\")&\" total: horas de expediente\"","v":"abr. total: horas de expediente"},{"$f":"SUM(Abril[Semana 1],Abril[Semana 2],Abril[Semana 3],Abril[Semana 4],Abril[Semana 5])","v":{"v":0,"d":"0.0"}},{"$f":"TEXT(DATEVALUE(Abril[[#Headers],[Abril]]&\" \"&YEAR(TODAY())),\"mmm.\")&\" total: horas extraordinárias\"","v":"abr. total: horas extraordinárias"},null,{"$f":"SUM(Abril[Horas Extraordinárias],Abril[[Horas Extraordinárias  ]],Abril[[Horas Extraordinárias   ]],Abril[[Horas Extraordinárias    ]],Abril[[Horas Extraordinárias     ]])","v":{"v":0,"d":"0.0"}}]
[]
["Introduza as horas de expediente e extraordinárias na tabela de maio a partir da célula E46. A instrução seguinte está na célula A55.",{"$nulls":3},"Maio","Semana 1","Horas Extraordinárias","Semana 2","Horas Extraordinárias  ","Semana 3","Horas Extraordinárias   ","Semana 4","Horas Extraordinárias    ","Semana 5","Horas Extraordinárias     "]
[{"$nulls":4},"Segunda-feira"]
[{"$nulls":4},"Terça-feira"]
[{"$nulls":4},"Quarta-feira"]
[{"$nulls":4},"Quinta-feira"]
[{"$nulls":4},"Sexta-feira"]
[{"$nulls":4},"Sábado"]
[{"$nulls":4},"Domingo"]
[{"$nulls":4},"Horas semanais totais",{"$f":"SUM(F47:F53)","v":{"v":0,"d":"0.0"}},{"v":0,"d":"0.0"},{"v":0,"d":"0.0"},{"v":0,"d":"0.0"},{"v":0,"d":"0.0"},{"v":0,"d":"0.0"},{"v":0,"d":"0.0"},{"v":0,"d":"0.0"},{"v":0,"d":"0.0"},{"v":0,"d":"0.0"}]
["As horas de expediente totais de maio na célula F55 e as horas extraordinárias totais de maio na célula I55 são calculadas automaticamente. A instrução seguinte está na célula A57.",{"$nulls":3},{"$f":"TEXT(DATEVALUE(Maio[[#Headers],[Maio]]&\" \"&YEAR(TODAY())),\"mmm.\")&\" total: horas de expediente\"","v":"mai. total: horas de expediente"},{"$f":"SUM(Maio[Semana 1],Maio[Semana 2],Maio[Semana 3],Maio[Semana 4],Maio[Semana 5])","v":{"v":0,"d":"0.0"}},{"$f":"TEXT(DATEVALUE(Maio[[#Headers],[Maio]]&\" \"&YEAR(TODAY())),\"mmm.\")&\" total: horas extraordinárias\"","v":"mai. total: horas extraordinárias"},null,{"$f":"SUM(Maio[Horas Extraordinárias],Maio[[Horas Extraordinárias  ]],Maio[[Horas Extraordinárias   ]],Maio[[Horas Extraordinárias    ]],Maio[[Horas Extraordinárias     ]])","v":{"v":0,"d":"0.0"}}]
[]
["Introduza as horas de expediente e extraordinárias na tabela de junho a partir da célula E57. A instrução seguinte está na célula A66.",{"$nulls":3},"Junho","Semana 1","Horas Extraordinárias","Semana 2","Horas Extraordinárias  ","Semana 3","Horas Extraordinárias   ","Semana 4","Horas Extraordinárias    ","Semana 5","Horas Extraordinárias     "]
[{"$nulls":4},"Segunda-feira"]
[{"$nulls":4},"Terça-feira"]
[{"$nulls":4},"Quarta-feira"]
[{"$nulls":4},"Quinta-feira"]
[{"$nulls":4},"Sexta-feira"]
[{"$nulls":4},"Sábado"]
[{"$nulls":4},"Domingo"]
[{"$nulls":4},"Horas semanais totais",{"$f":"SUM(F58:F64)","v":{"v":0,"d":"0.0"}},{"v":0,"d":"0.0"},{"v":0,"d":"0.0"},{"v":0,"d":"0.0"},{"v":0,"d":"0.0"},{"v":0,"d":"0.0"},{"v":0,"d":"0.0"},{"v":0,"d":"0.0"},{"v":0,"d":"0.0"},{"v":0,"d":"0.0"}]
["As horas de expediente totais de junho na célula F66 e as horas extraordinárias totais de junho na célula I66 são calculadas automaticamente.",{"$nulls":3},{"$f":"TEXT(DATEVALUE(Junho[[#Headers],[Junho]]&\" \"&YEAR(TODAY())),\"mmm.\")&\" total: horas de expediente\"","v":"jun. total: horas de expediente"},{"$f":"SUM(Junho[Semana 1],Junho[Semana 2],Junho[Semana 3],Junho[Semana 4],Junho[Semana 5])","v":{"v":0,"d":"0.0"}},{"$f":"TEXT(DATEVALUE(Junho[[#Headers],[Junho]]&\" \"&YEAR(TODAY())),\"mmm.\")&\" total: horas extraordinárias\"","v":"jun. total: horas extraordinárias"},null,{"$f":"SUM(Junho[Horas Extraordinárias],Junho[[Horas Extraordinárias  ]],Junho[[Horas Extraordinárias   ]],Junho[[Horas Extraordinárias    ]],Junho[[Horas Extraordinárias     ]])","v":{"v":0,"d":"0.0"}}]
["O cabeçalho do terceiro trimestre de julho, agosto e setembro encontra-se na célula E67. ",{"$nulls":3},"Julho, agosto, setembro      Folha de Horários de Colaboradores: Diária, Semanal, Mensal, Anual"]
["Introduza as horas de expediente e extraordinárias na tabela de julho a partir da célula E68. A instrução seguinte está na célula A77.",{"$nulls":3},"Julho","Semana 1","Horas Extraordinárias","Semana 2","Horas Extraordinárias ","Semana 3","Horas Extraordinárias  ","Semana 4","Horas Extraordinárias   ","Semana 5","Horas Extraordinárias     "]
[{"$nulls":4},"Segunda-feira"]
[{"$nulls":4},"Terça-feira"]
[{"$nulls":4},"Quarta-feira"]
[{"$nulls":4},"Quinta-feira"]
[{"$nulls":4},"Sexta-feira"]
[{"$nulls":4},"Sábado"]
[{"$nulls":4},"Domingo"]
[{"$nulls":4},"Horas semanais totais",{"$f":"SUM(F69:F75)","v":{"v":0,"d":"0.0"}},{"v":0,"d":"0.0"},{"v":0,"d":"0.0"},{"v":0,"d":"0.0"},{"v":0,"d":"0.0"},{"v":0,"d":"0.0"},{"v":0,"d":"0.0"},{"v":0,"d":"0.0"},{"v":0,"d":"0.0"},{"v":0,"d":"0.0"}]
["As horas de expediente totais de julho na célula F77 e as horas extraordinárias totais de julho na célula I77 são calculadas automaticamente. A instrução seguinte está na célula A79.",{"$nulls":3},{"$f":"TEXT(DATEVALUE(Julho[[#Headers],[Julho]]&\" \"&YEAR(TODAY())),\"mmm.\")&\" total: horas de expediente\"","v":"jul. total: horas de expediente"},{"$f":"SUM(Julho[Semana 1],Julho[Semana 2],Julho[Semana 3],Julho[Semana 4],Julho[Semana 5])","v":{"v":0,"d":"0.0"}},{"$f":"TEXT(DATEVALUE(Julho[[#Headers],[Julho]]&\" \"&YEAR(TODAY())),\"mmm.\")&\" total: horas extraordinárias\"","v":"jul. total: horas extraordinárias"},null,{"$f":"SUM(Julho[Horas Extraordinárias],Julho[[Horas Extraordinárias ]],Julho[[Horas Extraordinárias  ]],Julho[[Horas Extraordinárias   ]],Julho[[Horas Extraordinárias     ]])","v":{"v":0,"d":"0.0"}}]
[]
["Introduza as horas de expediente e extraordinárias na tabela de agosto a partir da célula E79. A instrução seguinte está na célula A88.",{"$nulls":3},"Agosto","Semana 1","Horas Extraordinárias","Semana 2","Horas Extraordinárias ","Semana 3","Horas Extraordinárias   ","Semana 4","Horas Extraordinárias  ","Semana 5","Horas Extraordinárias    "]
[{"$nulls":4},"Segunda-feira"]
[{"$nulls":4},"Terça-feira"]
[{"$nulls":4},"Quarta-feira"]
[{"$nulls":4},"Quinta-feira"]
[{"$nulls":4},"Sexta-feira"]
[{"$nulls":4},"Sábado"]
[{"$nulls":4},"Domingo"]
[{"$nulls":4},"Horas semanais totais",{"$f":"SUBTOTAL(109,Agosto[Semana 1])","v":{"v":0,"d":"0.0"}},{"$f":"SUBTOTAL(109,Agosto[Horas Extraordinárias])","v":{"v":0,"d":"0.0"}},{"$f":"SUBTOTAL(109,Agosto[Semana 2])","v":{"v":0,"d":"0.0"}},{"$f":"SUBTOTAL(109,Agosto[[Horas Extraordinárias ]])","v":{"v":0,"d":"0.0"}},{"$f":"SUBTOTAL(109,Agosto[Semana 3])","v":{"v":0,"d":"0.0"}},{"$f":"SUBTOTAL(109,Agosto[[Horas Extraordinárias   ]])","v":{"v":0,"d":"0.0"}},{"$f":"SUBTOTAL(109,Agosto[Semana 4])","v":{"v":0,"d":"0.0"}},{"$f":"SUBTOTAL(109,Agosto[[Horas Extraordinárias  ]])","v":{"v":0,"d":"0.0"}},{"$f":"SUBTOTAL(109,Agosto[Semana 5])","v":{"v":0,"d":"0.0"}},{"$f":"SUBTOTAL(109,Agosto[[Horas Extraordinárias    ]])","v":{"v":0,"d":"0.0"}}]
["As horas de expediente totais de agosto na célula F88 e as horas extraordinárias totais de agosto na célula I88 são calculadas automaticamente. A instrução seguinte está na célula A90.",{"$nulls":3},{"$f":"TEXT(DATEVALUE(Agosto[[#Headers],[Agosto]]&\" \"&YEAR(TODAY())),\"mmm.\")&\" total: horas de expediente\"","v":"ago. total: horas de expediente"},{"$f":"SUM(Agosto[Semana 1],Agosto[Semana 2],Agosto[Semana 3],Agosto[Semana 4],Agosto[Semana 5])","v":{"v":0,"d":"0.0"}},{"$f":"TEXT(DATEVALUE(Agosto[[#Headers],[Agosto]]&\" \"&YEAR(TODAY())),\"mmm.\")&\" total: horas extraordinárias\"","v":"ago. total: horas extraordinárias"},null,{"$f":"SUM(Agosto[Horas Extraordinárias],Agosto[[Horas Extraordinárias ]],Agosto[[Horas Extraordinárias   ]],Agosto[[Horas Extraordinárias  ]],Agosto[[Horas Extraordinárias    ]])","v":{"v":0,"d":"0.0"}}]
[]
["Introduza as horas de expediente e extraordinárias na tabela de setembro a partir da célula E90. A instrução seguinte está na célula A99.",{"$nulls":3},"Setembro","Semana 1","Horas Extraordinárias","Semana 2","Horas Extraordinárias ","Semana 3","Horas Extraordinárias  ","Semana 4","Horas Extraordinárias   ","Semana 5","Horas Extraordinárias    "]
[{"$nulls":4},"Segunda-feira"]
[{"$nulls":4},"Terça-feira"]
[{"$nulls":4},"Quarta-feira"]
[{"$nulls":4},"Quinta-feira"]
[{"$nulls":4},"Sexta-feira"]
[{"$nulls":4},"Sábado"]
[{"$nulls":4},"Domingo"]
[{"$nulls":4},"Horas semanais totais",{"$f":"SUBTOTAL(109,Setembro[Semana 1])","v":{"v":0,"d":"0.0"}},{"$f":"SUBTOTAL(109,Setembro[Horas Extraordinárias])","v":{"v":0,"d":"0.0"}},{"$f":"SUBTOTAL(109,Setembro[Semana 2])","v":{"v":0,"d":"0.0"}},{"$f":"SUBTOTAL(109,Setembro[[Horas Extraordinárias ]])","v":{"v":0,"d":"0.0"}},{"$f":"SUBTOTAL(109,Setembro[Semana 3])","v":{"v":0,"d":"0.0"}},{"$f":"SUBTOTAL(109,Setembro[[Horas Extraordinárias  ]])","v":{"v":0,"d":"0.0"}},{"$f":"SUBTOTAL(109,Setembro[Semana 4])","v":{"v":0,"d":"0.0"}},{"$f":"SUBTOTAL(109,Setembro[[Horas Extraordinárias   ]])","v":{"v":0,"d":"0.0"}},{"$f":"SUBTOTAL(109,Setembro[Semana 5])","v":{"v":0,"d":"0.0"}},{"$f":"SUBTOTAL(109,Setembro[[Horas Extraordinárias    ]])","v":{"v":0,"d":"0.0"}}]
["As horas de expediente totais de setembro na célula F99 e as horas extraordinárias totais de setembro na célula I99 são calculadas automaticamente.",{"$nulls":3},{"$f":"TEXT(DATEVALUE(Setembro[[#Headers],[Setembro]]&\" \"&YEAR(TODAY())),\"mmm.\")&\" total: horas de expediente\"","v":"set. total: horas de expediente"},{"$f":"SUM(Setembro[Semana 1],Setembro[Semana 2],Setembro[Semana 3],Setembro[Semana 4],Setembro[Semana 5])","v":{"v":0,"d":"0.0"}},{"$f":"TEXT(DATEVALUE(Setembro[[#Headers],[Setembro]]&\" \"&YEAR(TODAY())),\"mmm.\")&\" total: horas extraordinárias\"","v":"set. total: horas extraordinárias"},null,{"$f":"SUM(Setembro[Horas Extraordinárias],Setembro[[Horas Extraordinárias ]],Setembro[[Horas Extraordinárias  ]],Setembro[[Horas Extraordinárias   ]],Setembro[[Horas Extraordinárias    ]])","v":{"v":0,"d":"0.0"}}]
["O cabeçalho do quarto trimestre de outubro, novembro e dezembro encontra-se na célula E100. ",{"$nulls":3},"Outubro, novembro, dezembro      Folha de Horários de Colaboradores: Diária, Semanal, Mensal, Anual"]
["Introduza as horas de expediente e extraordinárias na tabela de outubro a partir da célula E101. A instrução seguinte está na célula A110.",{"$nulls":3},"Outubro","Semana 1","Horas Extraordinárias","Semana 2","Horas Extraordinárias ","Semana 3","Horas Extraordinárias  ","Semana 4","Horas Extraordinárias   ","Semana 5","Horas Extraordinárias    "]
[{"$nulls":4},"Segunda-feira"]
[{"$nulls":4},"Terça-feira"]
[{"$nulls":4},"Quarta-feira"]
[{"$nulls":4},"Quinta-feira"]
[{"$nulls":4},"Sexta-feira"]
[{"$nulls":4},"Sábado"]
[{"$nulls":4},"Domingo"]
[{"$nulls":4},"Horas semanais totais",{"$f":"SUBTOTAL(109,Outubro[Semana 1])","v":{"v":0,"d":"0.0"}},{"$f":"SUBTOTAL(109,Outubro[Horas Extraordinárias])","v":{"v":0,"d":"0.0"}},{"$f":"SUBTOTAL(109,Outubro[Semana 2])","v":{"v":0,"d":"0.0"}},{"$f":"SUBTOTAL(109,Outubro[[Horas Extraordinárias ]])","v":{"v":0,"d":"0.0"}},{"$f":"SUBTOTAL(109,Outubro[Semana 3])","v":{"v":0,"d":"0.0"}},{"$f":"SUBTOTAL(109,Outubro[[Horas Extraordinárias  ]])","v":{"v":0,"d":"0.0"}},{"$f":"SUBTOTAL(109,Outubro[Semana 4])","v":{"v":0,"d":"0.0"}},{"$f":"SUBTOTAL(109,Outubro[[Horas Extraordinárias   ]])","v":{"v":0,"d":"0.0"}},{"$f":"SUBTOTAL(109,Outubro[Semana 5])","v":{"v":0,"d":"0.0"}},{"$f":"SUBTOTAL(109,Outubro[[Horas Extraordinárias    ]])","v":{"v":0,"d":"0.0"}}]
["As horas de expediente totais de outubro na célula F110 e as horas extraordinárias totais de outubro na célula I110 são calculadas automaticamente. A instrução seguinte está na célula A112.",{"$nulls":3},{"$f":"TEXT(DATEVALUE(Outubro[[#Headers],[Outubro]]&\" \"&YEAR(TODAY())),\"mmm.\")&\" total: horas de expediente\"","v":"out. total: horas de expediente"},{"$f":"SUM(Outubro[Semana 1],Outubro[Semana 2],Outubro[Semana 3],Outubro[Semana 4],Outubro[Semana 5])","v":{"v":0,"d":"0.0"}},{"$f":"TEXT(DATEVALUE(Outubro[[#Headers],[Outubro]]&\" \"&YEAR(TODAY())),\"mmm.\")&\" total: horas extraordinárias\"","v":"out. total: horas extraordinárias"},null,{"$f":"SUM(Outubro[Horas Extraordinárias],Outubro[[Horas Extraordinárias ]],Outubro[[Horas Extraordinárias  ]],Outubro[[Horas Extraordinárias   ]],Outubro[[Horas Extraordinárias    ]])","v":{"v":0,"d":"0.0"}}]
[]
["Introduza as horas de expediente e extraordinárias na tabela de novembro a partir da célula E112. A instrução seguinte está na célula A121.",{"$nulls":3},"Novembro","Semana 1","Horas Extraordinárias","Semana 2","Horas Extraordinárias ","Semana 3","Horas Extraordinárias  ","Semana 4","Horas Extraordinárias    ","Semana 5","Horas Extraordinárias     "]
[{"$nulls":4},"Segunda-feira"]
[{"$nulls":4},"Terça-feira"]
[{"$nulls":4},"Quarta-feira"]
[{"$nulls":4},"Quinta-feira"]
[{"$nulls":4},"Sexta-feira"]
[{"$nulls":4},"Sábado"]
[{"$nulls":4},"Domingo"]
[{"$nulls":4},"Horas semanais totais",{"$f":"SUBTOTAL(109,Novembro[Semana 1])","v":{"v":0,"d":"0.0"}},{"$f":"SUBTOTAL(109,Novembro[Horas Extraordinárias])","v":{"v":0,"d":"0.0"}},{"$f":"SUBTOTAL(109,Novembro[Semana 2])","v":{"v":0,"d":"0.0"}},{"$f":"SUBTOTAL(109,Novembro[[Horas Extraordinárias ]])","v":{"v":0,"d":"0.0"}},{"$f":"SUBTOTAL(109,Novembro[Semana 3])","v":{"v":0,"d":"0.0"}},{"$f":"SUBTOTAL(109,Novembro[[Horas Extraordinárias  ]])","v":{"v":0,"d":"0.0"}},{"$f":"SUBTOTAL(109,Novembro[Semana 4])","v":{"v":0,"d":"0.0"}},{"$f":"SUBTOTAL(109,Novembro[[Horas Extraordinárias    ]])","v":{"v":0,"d":"0.0"}},{"$f":"SUBTOTAL(109,Novembro[Semana 5])","v":{"v":0,"d":"0.0"}},{"$f":"SUBTOTAL(109,Novembro[[Horas Extraordinárias     ]])","v":{"v":0,"d":"0.0"}}]
["As horas de expediente totais de novembro na célula F121 e as horas extraordinárias totais de novembro na célula I121 são calculadas automaticamente. A instrução seguinte está na célula A123.",{"$nulls":3},{"$f":"TEXT(DATEVALUE(Novembro[[#Headers],[Novembro]]&\" \"&YEAR(TODAY())),\"mmm.\")&\" total: horas de expediente\"","v":"nov. total: horas de expediente"},{"$f":"SUM(Novembro[Semana 1],Novembro[Semana 2],Novembro[Semana 3],Novembro[Semana 4],Novembro[Semana 5])","v":{"v":0,"d":"0.0"}},{"$f":"TEXT(DATEVALUE(Novembro[[#Headers],[Novembro]]&\" \"&YEAR(TODAY())),\"mmm.\")&\" total: horas extraordinárias\"","v":"nov. total: horas extraordinárias"},null,{"$f":"SUM(Novembro[Horas Extraordinárias],Novembro[[Horas Extraordinárias ]],Novembro[[Horas Extraordinárias  ]],Novembro[[Horas Extraordinárias    ]],Novembro[[Horas Extraordinárias     ]])","v":{"v":0,"d":"0.0"}}]
[]
["Introduza as horas de expediente e extraordinárias na tabela de dezembro a partir da célula E123. A instrução seguinte está na célula A132.",{"$nulls":3},"Dezembro","Semana 1","Horas Extraordinárias","Semana 2","Horas Extraordinárias ","Semana 3","Horas Extraordinárias  ","Semana 4","Horas Extraordinárias   ","Semana 5","Horas Extraordinárias    "]
[{"$nulls":4},"Segunda-feira"]
[{"$nulls":4},"Terça-feira"]
[{"$nulls":4},"Quarta-feira"]
[{"$nulls":4},"Quinta-feira"]
[{"$nulls":4},"Sexta-feira"]
[{"$nulls":4},"Sábado"]
[{"$nulls":4},"Domingo"]
[{"$nulls":4},"Horas semanais totais",{"$f":"SUBTOTAL(109,Dezembro[Semana 1])","v":{"v":0,"d":"0.0"}},{"$f":"SUBTOTAL(109,Dezembro[Horas Extraordinárias])","v":{"v":0,"d":"0.0"}},{"$f":"SUBTOTAL(109,Dezembro[Semana 2])","v":{"v":0,"d":"0.0"}},{"$f":"SUBTOTAL(109,Dezembro[[Horas Extraordinárias ]])","v":{"v":0,"d":"0.0"}},{"$f":"SUBTOTAL(109,Dezembro[Semana 3])","v":{"v":0,"d":"0.0"}},{"$f":"SUBTOTAL(109,Dezembro[[Horas Extraordinárias  ]])","v":{"v":0,"d":"0.0"}},{"$f":"SUBTOTAL(109,Dezembro[Semana 4])","v":{"v":0,"d":"0.0"}},{"$f":"SUBTOTAL(109,Dezembro[[Horas Extraordinárias   ]])","v":{"v":0,"d":"0.0"}},{"$f":"SUBTOTAL(109,Dezembro[Semana 5])","v":{"v":0,"d":"0.0"}},{"$f":"SUBTOTAL(109,Dezembro[[Horas Extraordinárias    ]])","v":{"v":0,"d":"0.0"}}]
["As horas de expediente totais de dezembro na célula F132 e as horas extraordinárias totais de dezembro na célula I132 são calculadas automaticamente.",{"$nulls":3},{"$f":"TEXT(DATEVALUE(Dezembro[[#Headers],[Dezembro]]&\" \"&YEAR(TODAY())),\"mmm.\")&\" total: horas de expediente\"","v":"dez. total: horas de expediente"},{"$f":"SUM(Dezembro[Semana 1],Dezembro[Semana 2],Dezembro[Semana 3],Dezembro[Semana 4],Dezembro[Semana 5])","v":{"v":0,"d":"0.0"}},{"$f":"TEXT(DATEVALUE(Dezembro[[#Headers],[Dezembro]]&\" \"&YEAR(TODAY())),\"mmm.\")&\" total: horas extraordinárias\"","v":"dez. total: horas extraordinárias"},null,{"$f":"SUM(G124:G130,I124:I130,K124:K130,M124:M130,O124:O130)","v":{"v":0,"d":"0.0"}}]